Cogmind - Beta 10.2 @@@ ROGUE MODE // 2021.05.23 @ 00:29:32 Player: Nori Result: Destroyed by as-42537 with Assembled Heavy Rifle Performance ------------- Evolutions (1) 500 Regions Visited (4) 800 Robots Destroyed (20) 100 Value Destroyed (451) 451 Prototype IDs (1) 20 Alien Tech Used (0) 0 Bonus (19) 19 TOTAL SCORE: 1890 Bonus ------- High Alert Combat Kills 19 Cogmind --------- Core Integrity 0/400 Matter 300/300 Energy 94/100 System Corruption 0% Temperature Cool (0) Movement Core (50) Location -9/Mines Parts ------- > --- POWER (1) -------- (None) > --- PROPULSION (2) --- (None) > --- UTILITY (4) ------ (None) > --- WEAPON (2) ------- (None) > --- INVENTORY (4) ---- Nuclear Core Large Storage Unit Improved Sensor Array Peak State ------------ > --- POWER ------------ Nuclear Core > --- PROPULSION ------- Aluminum Leg Aluminum Leg > --- UTILITY ---------- Medium Storage Unit Experimental Sensor Array > --- WEAPON ----------- Assault Cannon Assault Cannon > --- INVENTORY -------- Nuclear Core Aluminum Leg Large Storage Unit Improved Sensor Array Assault Cannon [Rating: 19] Favorites ----------- Power Light Ion Engine Engine Light Ion Engine Power Core Nuclear Core Propulsion Aluminum Leg Leg Aluminum Leg Utility Medium Storage Unit Device Experimental Sensor Array Storage Medium Storage Unit Weapon Light Assault Rifle Ballistic Gun Light Assault Rifle Ballistic Cannon Assault Cannon Build | -11 -10 -10 -9 -9 ------- Run | Scr Mat Min Mat Min Slots Evolved 2 | . . . 2 . Power . | . . . . . Propulsion . | . . . . . Utility 2 | . . . 2 . Weapon . | . . . . . Parts Attached 17 | 6 1 1 9 . Power 2 | 1 . . 1 . Engine 1 | 1 . . . . Core 1 | . . . 1 . Reactor . | . . . . . Propulsion 6 | 2 . . 4 . Treads . | . . . . . Leg 6 | 2 . . 4 . Wheel . | . . . . . Hover . | . . . . . Flight . | . . . . . Utility 4 | 1 1 1 1 . Device 1 | . . 1 . . Storage 3 | 1 1 . 1 . Processor . | . . . . . Hackware . | . . . . . Protection . | . . . . . Artifact . | . . . . . Weapon 5 | 2 . . 3 . Energy Gun . | . . . . . Energy Cannon . | . . . . . Ballistic Gun 2 | 2 . . . . Ballistic Cannon 3 | . . . 3 . Launcher . | . . . . . Special Weapon . | . . . . . Impact Weapon . | . . . . . Slashing Weapon . | . . . . . Piercing Weapon . | . . . . . Special Melee Weapon . | . . . . . Unidentified Prototypes 1 | . . 1 . . Parts Lost 11 | . . . 7 4 Power 1 | . . . 1 . Propulsion 4 | . . . 2 2 Utility 1 | . . . . 1 Weapon 5 | . . . 4 1 Highest Loss Streak 5 | . . . 5 4 Average Slot Usage (%) 72 | . 85 90 69 45 Engine 4 | . 14 14 1 . Core 4 | . . . 6 . Leg 23 | . 28 28 21 16 Device 8 | . . 5 11 9 Storage 11 | . 14 14 11 9 Ballistic Gun 12 | . 28 28 6 . Ballistic Cannon 7 | . . . 11 9 Naked Turns 1 | . . . . 1 Heaviest Build 26 | 9 13 14 26 14 Greatest Support 20 | 20 20 20 20 20 Greatest Overweight (x) 4 | . . . 4 4 Average Overweight (x) . | . . . . . Largest Inventory Capacity 14 | 6 10 8 14 8 Average Capacity 7 | 5 7 8 8 7 Most Carried 8 | 4 7 8 8 3 Average Carried 5 | 1 5 7 5 3 Final Capacity 8 | 6 8 8 8 4 Final Carried 7 | 2 7 7 3 3 Class Distribution -------------------- 100% | Mutant Dominant Class ---------------- Mutant | -10/Materials Mutant | -10/Mines Mutant | -9/Materials Mutant | -9/Mines Resources | -11 -10 -10 -9 -9 ----------- Run | Scr Mat Min Mat Min Matter Collected 717 | 215 . 39 430 33 Remotely . | . . . . . Salvage Created 410 | . . 39 371 . Parts 31 | . . 3 28 . Haulers Intercepted . | . . . . . Recyclers Shooed . | . . . . . Parts Field Recycled . | . . . . . Retrieved Matter . | . . . . . Parts Self-Destructed . | . . . . . Prevented . | . . . . . Kills | -11 -10 -10 -9 -9 ------- Run | Scr Mat Min Mat Min Combat Hostiles Destroyed 19 | . . 3 16 . Guns 4 | . . 3 1 . Cannons 15 | . . . 15 . Classes Destroyed 4 | . . 1 3 . Worker 1 | . . . 1 . Swarmer 10 | . . 3 7 . Grunt 5 | . . . 5 . Sentry 4 | . . . 4 . Best Kill Streak 5 | . . 3 5 . Combat Bots Only 5 | . . 3 5 . Max Kills in Single Turn 1 | . . 1 1 . Gunslinging . | . . . . . Exploded . | . . . . . Melee . | . . . . . Uniques/NPCs Destroyed . | . . . . . Combat | -11 -10 -10 -9 -9 -------- Run | Scr Mat Min Mat Min Damage Taken 1712 | . 21 243 917 531 Core 462 | . . 55 129 278 Absorbed by Shields . | . . . . . Core Remaining (%) 89 | 100 . 78 . . Volleys Fired 67 | . 3 8 51 5 Largest 2 | . 2 2 2 1 Hottest 88 | . 40 40 88 44 Shots Fired 105 | . 6 16 78 5 Gun 32 | . 6 16 10 . Cannon 73 | . . . 68 5 Launcher . | . . . . . Special . | . . . . . Kinetic 105 | . 6 16 78 5 Thermal . | . . . . . Explosive . | . . . . . Electromagnetic . | . . . . . Robot Hit Streak 7 | . 2 6 7 1 Robot Miss Streak 3 | . 1 2 3 3 Penetration Max . | . . . . . Secondary Targets 1 | . . 1 . . Max Gunslinging Chain 1 | . . 1 . . Shots Hit Robots 51 | . 3 11 35 2 Core Hits 23 | . 1 4 18 . Critical Hits 2 | . . . 2 . Critical Kills 1 | . . . 1 . Critical Parts Destroyed 1 | . . . 1 . Melee Attacks . | . . . . . Impact . | . . . . . Slashing . | . . . . . Piercing . | . . . . . Sneak Attacks . | . . . . . Combat Hostiles . | . . . . . Follow-up Attacks . | . . . . . Damage Inflicted 922 | . 33 72 765 52 Guns 157 | . 33 72 52 . Cannons 765 | . . . 713 52 Explosions . | . . . . . Melee . | . . . . . Ramming . | . . . . . Kinetic 922 | . 33 72 765 52 Thermal . | . . . . . Explosive . | . . . . . Electromagnetic . | . . . . . Impact . | . . . . . Slashing . | . . . . . Piercing . | . . . . . Highest Corruption . | . . . . . Average Corruption . | . . . . . Corruption Purged . | . . . . . Overload Shots . | . . . . . Overflow Damage 7 | . . . . 7 Projectiles 7 | . . . . 7 Explosions . | . . . . . Melee . | . . . . . Knockbacks 8 | . . . 7 1 Impact . | . . . . . Kinetic 8 | . . . 7 1 Secondary . | . . . . . Self-Inflicted Damage . | . . . . . Shots . | . . . . . Rammed . | . . . . . Targets Rammed . | . . . . . Kicked . | . . . . . Crushed . | . . . . . Highest Temperature 256 | . . . 256 . Average Temperature 91 | . . . 91 . Received Heat Transfer 314 | . . 30 204 80 Siege Activations . | . . . . . Robots Corrupted . | . . . . . Combat Hostiles . | . . . . . Parts Fried . | . . . . . Impact Corruptions . | . . . . . Robots Melted . | . . . . . Combat Hostiles . | . . . . . Parts Melted . | . . . . . Heat Transferred . | . . . . . Parts Sabotaged . | . . . . . Parts Stolen . | . . . . . Parts Stripped . | . . . . . Power Chain Reactions . | . . . . . Missiles Intercepted . | . . . . . Alert | -11 -10 -10 -9 -9 ------- Run | Scr Mat Min Mat Min Peak Influence 460 | . 60 93 460 109 Initial 109 | . . 23 35 109 Average 121 | . 1 74 189 103 Maximum Alert Level 2 | . . . 2 . Low Security (%) 69 | 100 100 100 46 100 Level 1 23 | . . . 42 . Level 2 6 | . . . 11 . Level 3 . | . . . . . Level 4 . | . . . . . Level 5 . | . . . . . High Security . | . . . . . Max Security . | . . . . . Squads Dispatched 3 | . . . 3 . Investigation 1 | . . . 1 . Extermination . | . . . . . Reinforcement 2 | . . . 2 . Assault . | . . . . . Garrison . | . . . . . Intercept . | . . . . . Construction Impeded . | . . . . . Haulers Reinforced . | . . . . . Stealth | -11 -10 -10 -9 -9 --------- Run | Scr Mat Min Mat Min Distress Signals 2 | . . . 2 . Communications Jammed . | . . . . . Distress Signals . | . . . . . Times Spotted 56 | . 2 5 27 22 Peak Tracking Total 17 | . 3 3 6 17 Tactical Retreats 5 | . 1 . 3 1 Traps | -11 -10 -10 -9 -9 ------- Run | Scr Mat Min Mat Min Traps Triggered 1 | . . . 1 . Indirectly . | . . . . . Trap Hack Attempts . | . . . . . Triggered . | . . . . . Disarmed . | . . . . . Reprogrammed . | . . . . . Reused . | . . . . . Traps Extracted . | . . . . . Installed . | . . . . . Triggered . | . . . . . Machines | -11 -10 -10 -9 -9 ---------- Run | Scr Mat Min Mat Min Machines Disabled . | . . . . . Max in Single Turn . | . . . . . Machines Sabotaged . | . . . . . Garrisons Compromised . | . . . . . Overloaded Fab Kills . | . . . . . Fab Network Shutdowns . | . . . . . Hacking | -11 -10 -10 -9 -9 --------- Run | Scr Mat Min Mat Min Machines Accessed 1 | . 1 . . . Terminals 1 | . 1 . . . Fabricators . | . . . . . Repair Stations . | . . . . . Recycling Units . | . . . . . Scanalyzers . | . . . . . Garrison Access . | . . . . . Total Hacks 4 | . 4 . . . Successful 3 | . 3 . . . Failed 1 | . 1 . . . Catastrophic . | . . . . . Database Lockouts . | . . . . . Manual . | . . . . . Terminals 4 | . 4 . . . Fabricators . | . . . . . Repair Stations . | . . . . . Recycling Units . | . . . . . Scanalyzers . | . . . . . Garrison Access . | . . . . . Terminal Hacks 3 | . 3 . . . Branch Access Points 1 | . 1 . . . Alert Level 2 | . 2 . . . Fabricator Hacks . | . . . . . Repair Station Hacks . | . . . . . Recycling Unit Hacks . | . . . . . Scanalyzer . | . . . . . Garrison Access Hacks . | . . . . . Unauthorized Hacks . | . . . . . Terminals . | . . . . . Fabricators . | . . . . . Repair Stations . | . . . . . Recycling Units . | . . . . . Scanalyzers . | . . . . . Garrison Access . | . . . . . Data Cores Recovered . | . . . . . Used . | . . . . . Hacking Detections 1 | . 1 . . . Full Trace Events 1 | . 1 . . . Feedback Events . | . . . . . Feedback Blocked . | . . . . . Robot Schematics Acquired . | . . . . . Robots Built . | . . . . . Matter . | . . . . . Time . | . . . . . Total Robot Build Rating . | . . . . . Part Schematics Acquired . | . . . . . Parts Built . | . . . . . Matter . | . . . . . Time . | . . . . . Total Part Build Rating . | . . . . . Parts Repaired . | . . . . . Time . | . . . . . Parts Recycled . | . . . . . Recycled Matter . | . . . . . Retrieved Matter . | . . . . . Retrieved Components . | . . . . . Parts Scanalyzed . | . . . . . Part Schematics Acquired . | . . . . . Parts Damaged . | . . . . . Bothacking | -11 -10 -10 -9 -9 ------------ Run | Scr Mat Min Mat Min Used RIF Installer . | . . . . . Robots Hacked . | . . . . . Non-combat . | . . . . . Combat . | . . . . . Robot Hacks Applied . | . . . . . Relay Couplers Released . | . . . . . Robots Rewired . | . . . . . Allies Hacked . | . . . . . Hacks Repelled . | . . . . . Allies | -11 -10 -10 -9 -9 -------- Run | Scr Mat Min Mat Min Total Allies . | . . . . . Largest Group . | . . . . . Highest-Rated Group . | . . . . . Highest-Rated Ally . | . . . . . Total Orders . | . . . . . Ally Attacks . | . . . . . Total Damage . | . . . . . Kills . | . . . . . Allies Corrupted . | . . . . . Allies Melted . | . . . . . Intel | -11 -10 -10 -9 -9 ------- Run | Scr Mat Min Mat Min Robot Analysis Total . | . . . . . Derelict Logs Recovered . | . . . . . Drone Launches . | . . . . . Drone Recoveries . | . . . . . Exploration | -11 -10 -10 -9 -9 ------------- Run | Scr Mat Min Mat Min Turns Passed 909 | 60 180 83 507 79 Spaces Moved 563 | 44 138 51 276 54 Core 17 | 9 . . 1 7 Treads . | . . . . . Legs 546 | 35 138 51 275 47 Wheels . | . . . . . Hover . | . . . . . Flight . | . . . . . Fastest Speed 50 | 50 120 120 120 50 Average Speed 123 | 105 120 120 129 126 Slowest Speed 250 | 120 120 120 250 250 Overloaded Moves . | . . . . . Propulsion Burnouts . | . . . . . Robots Hopped . | . . . . . Cave-ins Triggered . | . . . . . Exploration Rate (%) 23 | 4 33 20 41 21 Regions Visited 4 Branch Regions 2 Pre-discovered Areas . | . . . . . Known Exits Taken 1 | . 1 . . . Unknown Exits Taken 3 | 1 . 1 1 . Scrap Searched . | . . . . . Spaces Dug . | . . . . . Terrain Destroyed 15 | . . . 13 2 Melee . | . . . . . Projectile 15 | . . . 13 2 AOE . | . . . . . Terrain Rammed . | . . . . . Walls Destroyed . | . . . . . Machines Disabled . | . . . . . Actions | -11 -10 -10 -9 -9 --------- Run | Scr Mat Min Mat Min Total 677 | 57 148 60 352 60 Wait 5 | . . . 5 . Move 559 | 43 137 50 275 54 Hop . | . . . . . Pick Up 21 | 8 6 1 6 . Fast Attach . | . . . . . Attach 14 | 6 1 1 6 . Detach 1 | . . . 1 . Swap 3 | . . . 3 . Drop 7 | . 1 . 5 1 Fire 67 | . 3 8 51 5 Melee . | . . . . . Ram . | . . . . . Kick . | . . . . . Crush . | . . . . . Escape Stasis . | . . . . . Rewire . | . . . . . Trap . | . . . . . Miscellaneous . | . . . . . Route ------- -11/Scrapyard -10/Materials (discovered 2 exits: *Min x2) -10/Mines -9/Materials -9/Mines (discovered 1 exit: [*Mat]) History --------- Turn | Location | Event 17 | -11/Scrapyard | Discovered new exit (range 15) 61 | -11/Scrapyard | Entered Materials 78 | -10/Materials | Identified exit to Mines 241 | -10/Materials | Entered Mines 295 | -10/Mines | Found a damaged Exp. Sensor Array with a note attached 297 | -10/Mines | Found Prototype Device 298 | -10/Mines | Identified Exp. Sensor Array 306 | -10/Mines | Discovered new exit (range 16) 319 | -10/Mines | Build established: Mutant 324 | -10/Mines | Entered Materials 324 | -9/Materials | Evolved 2 slots: Utility x2 752 | -9/Materials | Lost 5 parts (1p2n2w) 826 | -9/Materials | Discovered new exit (range 5) 831 | -9/Materials | Entered Mines 878 | -9/Mines | Assembled infested the area 896 | -9/Mines | Core integrity fell below 50% 897 | -9/Mines | Discovered new exit (range 7) 909 | -9/Mines | Core integrity fell below 20% 910 | -9/Mines | Destroyed by as-42537 with Assembled Heavy Rifle Last Messages --------------- 00890_ D-53 Grenadier misfires. 00890_ as-31337 destroyed. 00890_ U-05 Engineer destroyed. 00890_ S-10 Pest destroyed. 00891_ D-53 Grenadier Imp. Light Armor Plating severed. 00891_ Destroyed Flight Unit. 00891_ D-53 Grenadier destroyed. 00892_ G-34 Mercenary destroyed. 00895_ S-10 Pest knocked back. 00897_ EXIT=FOUND 00898_ Aluminum Leg destroyed. 00900_ as-85470 destroyed. 00901_ The unstable cave ceiling collapses. 00902_ Assault Cannon destroyed. 00903_ S-10 Pest destroyed. 00906_ Acquired 33 matter. 00908_ Exp. Sensor Array destroyed. 00908_ U-05 Engineer destroyed. 00908_ as-47164 destroyed. 00909_ Dropped Med. Storage Unit. Map ----- +----------------------------------------------------+ | ??????????## #??????????????????????????????? | | ?????????## ##????##???????????????????????? | | ????????## ##?? ###?????????????????????? | | ????????# ## #????????????????????? | | ????????# ????????????????????? | | ????????## ????????????????????? | | ?????????## # ## ?????????????????????? | | ??????????# ##?????????????????????????????? | | ??????????## ##??????????????????????????????? | | ???????????## ##???????????????????????????????? | | ????????????# ##????????????????????????????????? | | ??????# ##### #?????????????????????????????????? | | ??????# #?????????????????????????????????? | | ############# #?????????????????????????????????? | | ^ #????# ##### #???????????????????????????? | | # # #???## #???????????????????????????? | | ^# #^#??## ######???????????????????????????? | | ^# ^#?## #????????????????????????????????? | | ## ### #####????????????????????????????? | | ^ #????????????????????????????? | | !%= #????????????????????????????? | | ###!=#########????????????????????? | | ###%%#= #????????????????????? | | ##% ==%% #????????????????????? | | ##### [= #????????????????????? | | ##???# aa %!@< #????????????????????? | | #????## % #????????????????????? | | #????# aa% " #????????????????????? | | # #???### %aaa #????????????????????? | | #### #?????# % "" #????????????????????? | | ???## ##?????## !% % #????????????????????? | | ????#######???????# ==%# ####????????????????????? | | ??????????????????### ???????????????????????? | | ????????????????????# %??????????????????????? | | ????????????????????# #??????????????????????? | | ????????????????????### ##??????????????????????? | | ???????????????????????###???????????????????????? | | ?????????????????????????????????????????????????? | | ?????????????????????????????????????????????????? | | ?????????????????????????????????????????????????? | | | | | | | | | | | | | | | | | | | | | +----------------------------------------------------+ Best States ------------- Heat Dissipation 28 Energy Generation 14 Energy Capacity 240 Matter Stores 300 Matter Capacity 300 Sight Range 16 Robot Scan Range 30 Terrain Scan Density 10 Evasion (%) 50 Item Schematics ----------------- None Robot Schematics ------------------ None Fabricated ------------ Nothing Alien Tech Used ----------------- None Achievements -------------- None Challenges ------------ None Game ------ Seed GyrokineticParticleHammer Manual? 0 Play Time 00:09:51 Cumulative 117.1 hours Start 2021.05.23 @ 00:19:58 End 2021.05.23 @ 00:29:32 Sessions 1 Manual Loads 0 Difficulty Rogue Special Mode None Game No. 69 Rogue 69 Adventurer 0 Explorer 0 Win Type - Total 2 Types 0/0/0/2/0/0/0/0/0 Lore% 31 Gallery% 59 Achievement% 42 Wizard Run 0 Options --------- ASCII 0 Keyboard 0 Movement Numpad Keybinds 0 Fullscreen 2 Font 20/SmallcapsGlow Map View 66x50 Tactical HUD 1 Map Filters NONE Filters NONE Steam 1 RUN: eab8b2cd-38ad-42e3-a9f8-7abe73d70e59